Cogmind - Beta 10.1 --- EXPLORER MODE // 2020.09.26 @ 01:21:55 // Winter2019/RPGLIKE Player: HOTSOUP Result: Smashed by cave-in Performance ------------- Evolutions (8) 4000 Regions Visited (27) 5400 Robots Destroyed (136) 680 Value Destroyed (6596) 6596 Prototype IDs (23) 460 Alien Tech Used (0) 0 Bonus (5600) 5600 TOTAL SCORE: 22736 Bonus ------- Triggered Max Security 2000 High Alert Combat Kills 1166 Follower Combat Kills 968 Entered Garrisons 600 Used RIF Installer 1000 Aligned with FarCom 300 Friendly Fire -434 Cogmind --------- Core Integrity 0/2400 Matter 233/300 Energy 120/315 System Corruption 1% Temperature Cool (0) Movement Flying (34) Location -2/Section 7 Parts ------- > --- POWER (2) -------- Neutrino Core > --- PROPULSION (4) --- Field Propulsion Drive Nuclear Pulse Array Impulse Thruster > --- UTILITY (8) ------ Improved Transmission Jammer Hacking Suite Advanced System Shield Advanced System Shield > --- WEAPON (3) ------- Advanced Micro-nuke Launcher Ragnarok Missile Launcher Plasma Lance > --- INVENTORY (6) ---- Relay Coupler [NC] (82) Improved System Backup Module Advanced Remote Datajack Sigix Corpse Peak State ------------ > --- POWER ------------ Neutrino Core > --- PROPULSION ------- Nuclear Pulse Array Impulse Thruster Impulse Thruster > --- UTILITY ---------- Quantum Capacitor Improved Transmission Jammer Hacking Suite Advanced Hacking Suite Advanced System Shield Advanced System Shield Relay Coupler [Sentry] > --- WEAPON ----------- Advanced Micro-nuke Launcher Ragnarok Missile Launcher Chainsword > --- INVENTORY -------- Relay Coupler [NC] Improved System Backup Module Advanced Remote Datajack Sigix Corpse [Rating: 101] Favorites ----------- Power Improved Deuterium Engine Engine Improved Deuterium Engine Power Core Neutrino Core Reactor Light Antimatter Reactor Propulsion Q-thruster Flight Unit Q-thruster Utility Advanced System Shield Device Improved Cloaking Device Storage Large Battery Processor Advanced Visual Processing Unit Hackware Advanced System Shield Protection Insulated Plating Weapon Chainsword Energy Gun Medium Laser Energy Cannon Latent Energy Streamer Ballistic Gun Gauss Rifle Launcher Ragnarok Missile Launcher Special Weapon Advanced Remote Datajack Slashing Weapon Chainsword Piercing Weapon Plasma Lance Special Melee Weapon Datajack Build | -11 -10 -10 -10 -9 -8 -7 -7 -6 -6 -6 -6 -6 -5 -5 -5 -4 -4 -4 -4 -4 -4 -3 -3 -3 -2 -2 -2 ------- Run | Scr Mat Min Exi Min Mat Fac Gar Fac Gar Fac Low Low Fac Upp Upp Fac Gar Fac Upp Upp War Pro Res Arm Res Qua Sec Slots Evolved 13 | 2 . . 1 . 1 1 . . 1 . . . 1 1 . 2 . 1 . . . . . . . 1 1 Power 1 | . . . . . . . . . . . . . . . . 1 . . . . . . . . . . . Propulsion 3 | 1 . . . . 1 . . . . . . . . . . . . . . . . . . . . . 1 Utility 7 | 1 . . 1 . . 1 . . 1 . . . . 1 . 1 . 1 . . . . . . . . . Weapon 2 | . . . . . . . . . . . . . 1 . . . . . . . . . . . . 1 . Parts Attached 135 | 1 10 1 6 . 2 11 1 8 12 11 2 . 4 . . 10 9 5 . . . . 19 7 3 7 6 Power 19 | . 3 . . . . 2 . 1 2 . . . . . . . 4 2 . . . . 3 . . 2 . Engine 6 | . . . . . . 2 . 1 2 . . . . . . . 1 . . . . . . . . . . Core 9 | . 3 . . . . . . . . . . . . . . . 2 . . . . . 3 . . 1 . Reactor 4 | . . . . . . . . . . . . . . . . . 1 2 . . . . . . . 1 . Propulsion 32 | . 6 . . . 2 3 . 2 1 3 . . . . . 5 1 1 . . . . 3 3 . . 2 Treads . | . . . . . . . . . . . . . . . . . . . . . . . . . . . . Leg . | . . . . . . . . . . . . . . . . . . . . . . . . . . . . Wheel . | . . . . . . . . . . . . . . . . . . . . . . . . . . . . Hover . | . . . . . . . . . . . . . . . . . . . . . . . . . . . . Flight 32 | . 6 . . . 2 3 . 2 1 3 . . . . . 5 1 1 . . . . 3 3 . . 2 Utility 43 | . . . 4 . . 3 . 4 2 5 1 . 3 . . 4 4 2 . . . . 6 2 1 1 1 Device 14 | . . . . . . . . . 1 4 . . 2 . . . . 1 . . . . 2 2 . 1 1 Storage 4 | . . . 4 . . . . . . . . . . . . . . . . . . . . . . . . Processor 3 | . . . . . . 1 . . . 1 . . . . . . . . . . . . 1 . . . . Hackware 19 | . . . . . . 1 . 2 1 . 1 . 1 . . 4 4 1 . . . . 3 . 1 . . Protection 3 | . . . . . . 1 . 2 . . . . . . . . . . . . . . . . . . . Artifact . | . . . . . . . . . . . . . . . . . . . . . . . . . . . . Weapon 41 | 1 1 1 2 . . 3 1 1 7 3 1 . 1 . . 1 . . . . . . 7 2 2 4 3 Energy Gun 2 | 1 1 . . . . . . . . . . . . . . . . . . . . . . . . . . Energy Cannon 9 | . . . 2 . . 3 1 1 2 . . . . . . . . . . . . . . . . . . Ballistic Gun 4 | . . . . . . . . . 3 1 . . . . . . . . . . . . . . . . . Ballistic Cannon . | . . . . . . . . . . . . . . . . . . . . . . . . . . . . Launcher 6 | . . 1 . . . . . . . . . . . . . . . . . . . . . 1 . 3 1 Special Weapon 6 | . . . . . . . . . 1 . 1 . . . . 1 . . . . . . 2 . 1 . . Impact Weapon . | . . . . . . . . . . . . . . . . . . . . . . . . . . . . Slashing Weapon 9 | . . . . . . . . . 1 2 . . 1 . . . . . . . . . 4 . . 1 . Piercing Weapon 2 | . . . . . . . . . . . . . . . . . . . . . . . . . . . 2 Special Melee Weapon 3 | . . . . . . . . . . . . . . . . . . . . . . . 1 1 1 . . Unidentified Prototypes 3 | . . . 1 . . 1 . . . . . . . . . . . . . . . . . . . . 1 Parts Lost 9 | . . . . . 2 . . . . . . . . . . . . . . . 1 2 2 . . . 2 Power 2 | . . . . . 1 . . . . . . . . . . . . . . . 1 . . . . . . Propulsion 2 | . . . . . 1 . . . . . . . . . . . . . . . . . 1 . . . . Utility 4 | . . . . . . . . . . . . . . . . . . . . . . 1 1 . . . 2 Weapon 1 | . . . . . . . . . . . . . . . . . . . . . . 1 . . . . . Highest Loss Streak 2 | . . . . . 2 . . . . . . . . . . . . . . . 1 2 2 . . . 2 Average Slot Usage (%) 86 | . 42 66 64 85 82 74 99 96 95 99 100 100 99 91 91 86 90 91 82 78 67 52 77 83 81 76 74 Engine 6 | . . . . . . 8 11 10 10 10 10 10 9 8 8 7 10 5 . . . . . . . . . Core 2 | . 3 16 14 14 9 . . . . . . . . . . . 1 . . . . . 12 8 6 5 5 Reactor 1 | . . . . . . . . . . . . . . . . . . 7 13 13 8 . . . . . . Flight 21 | . 22 33 28 28 34 32 33 33 28 29 30 30 27 25 25 19 13 13 13 13 12 6 12 9 13 12 15 Device 5 | . . . . . . . . . 10 13 16 10 8 8 8 7 4 1 6 4 . . 3 12 7 6 5 Storage 2 | . . . 7 28 25 22 22 8 . . . . . . . . . . . . . . . . . . . Processor 1 | . . . . . . 4 11 11 . . . . . . . . . . . . . . 1 . . . . Hackware 32 | . . . . . . 1 11 18 34 36 33 40 36 33 33 37 44 48 36 33 33 32 37 40 40 35 29 Energy Cannon 2 | . . . 11 14 12 4 10 10 7 . . . . . . . . . . . . . . . . . . Special Weapon 3 | . . . . . . . . . . . 2 10 9 8 8 5 7 6 6 6 6 5 . . . 1 . Slashing Weapon 4 | . . . . . . . . . 1 9 7 . 9 8 8 7 7 6 6 6 6 6 5 6 6 4 2 Naked Turns 2 | . 2 . . . . . . . . . . . . . . . . . . . . . . . . . . Heaviest Build 42 | 2 7 8 22 22 22 26 26 26 20 16 16 16 19 18 18 19 31 33 33 33 32 8 26 33 33 42 40 Greatest Support 45 | 3 8 8 8 8 12 22 22 30 30 27 27 16 27 24 24 38 38 38 36 36 36 13 42 42 35 35 45 Greatest Overweight (x) 3 | . 1 . 2 2 2 2 1 1 1 . . . . . . . 3 3 . . 1 . 1 2 . 1 1 Average Overweight (x) . | . . . . 2 1 . . . . . . . . . . . . . . . . . . . . . . Largest Inventory Capacity 6 | 2 2 2 2 2 2 2 2 2 3 3 3 3 3 3 3 3 5 5 5 5 5 5 6 6 6 6 6 Average Capacity 3 | 2 2 2 2 2 2 2 2 2 2 3 3 3 3 3 3 3 4 5 5 5 5 5 5 6 6 6 6 Most Carried 6 | 1 2 2 2 2 2 2 2 2 3 3 3 2 3 3 3 3 4 5 4 4 4 4 5 5 6 6 6 Average Carried 2 | . 1 2 2 2 1 1 1 1 1 2 2 2 2 3 3 2 3 3 4 4 4 4 3 2 5 5 4 Final Capacity 6 | 2 2 2 2 2 2 2 2 2 3 3 3 3 3 3 3 3 5 5 5 5 5 5 6 6 6 6 6 Final Carried 6 | 1 2 2 2 2 2 2 2 2 3 3 2 2 3 3 3 3 4 4 4 4 4 4 3 5 6 6 4 Class Distribution -------------------- 73% | Wizard-Mutant 20% | Wizard-Sprinter 5% | Hacker-Mutant Dominant Class ---------------- Hacker-Mutant | -10/Materials Hacker-Mutant | -10/Mines Wizard-Mutant | -10/Exiles Wizard-Mutant | -9/Mines Wizard-Mutant | -8/Materials Wizard-Sprinter | -7/Factory Wizard-Mutant | -7/Garrison Wizard-Sprinter | -6/Factory Wizard-Sprinter | -6/Garrison Wizard-Sprinter | -6/Factory Wizard-Sprinter | -6/Lower Caves Wizard-Mutant | -6/Lower Caves Wizard-Mutant | -5/Factory Wizard-Mutant | -5/Upper Caves Wizard-Mutant | -5/Upper Caves Wizard-Mutant | -4/Factory Wizard-Mutant | -4/Garrison Wizard-Mutant | -4/Factory Wizard-Mutant | -4/Upper Caves Wizard-Mutant | -4/Upper Caves Wizard-Mutant | -4/Warlord Wizard-Mutant | -3/Proximity Caves Wizard-Mutant | -3/Research Wizard-Mutant | -3/Armory Wizard-Mutant | -2/Research Wizard-Mutant | -2/Quarantine Wizard-Mutant | -2/Section 7 Resources | -11 -10 -10 -10 -9 -8 -7 -7 -6 -6 -6 -6 -6 -5 -5 -5 -4 -4 -4 -4 -4 -4 -3 -3 -3 -2 -2 -2 ----------- Run | Scr Mat Min Exi Min Mat Fac Gar Fac Gar Fac Low Low Fac Upp Upp Fac Gar Fac Upp Upp War Pro Res Arm Res Qua Sec Matter Collected 2993 | 210 50 . 280 10 32 30 129 . 397 95 38 . 130 50 . 173 410 290 70 . . . 180 . 75 82 262 Remotely . | . . . . . . . . . . . . . . . . . . . . . . . . . . . . Salvage Created 5440 | . 267 . . . 493 135 303 41 591 101 . . 247 82 . 623 274 569 157 227 . . 193 205 . 670 262 Parts 267 | . 21 . . . 31 23 11 1 28 10 . . 14 2 . 25 13 30 2 6 . . 14 6 . 20 10 Haulers Intercepted 3 | . 1 . . . 1 . . . . . . . . . . . . . . . . . . . . . 1 Recyclers Shooed 1 | . . . . . . . . . . . . . . . . . . . . . . . 1 . . . . Parts Field Recycled . | . . . . . . . . . . . . . . . . . . . . . . . . . . . . Retrieved Matter . | . . . . . . . . . . . . . . . . . . . . . . . . . . . . Parts Self-Destructed . | . . . . . . . . . . . . . . . . . . . . . . . . . . . . Prevented . | . . . . . . . . . . . . . . . . . . . . . . . . . . . . Kills | -11 -10 -10 -10 -9 -8 -7 -7 -6 -6 -6 -6 -6 -5 -5 -5 -4 -4 -4 -4 -4 -4 -3 -3 -3 -2 -2 -2 ------- Run | Scr Mat Min Exi Min Mat Fac Gar Fac Gar Fac Low Low Fac Upp Upp Fac Gar Fac Upp Upp War Pro Res Arm Res Qua Sec Combat Hostiles Destroyed 81 | . 6 . . . 7 4 6 . 10 . . . . . . 5 8 9 3 4 . . 1 2 . 16 . Melee 34 | . . . . . . . . . 2 . . . . . . 5 8 9 3 4 . . 1 2 . . . Guns 10 | . 5 . . . . . . . 5 . . . . . . . . . . . . . . . . . . Cannons 3 | . . . . . 1 . 1 . 1 . . . . . . . . . . . . . . . . . . AOE 31 | . . . . . 5 4 4 . 2 . . . . . . . . . . . . . . . . 16 . Classes Destroyed 17 | . 4 . . . 4 1 . . 3 . . . . 1 . . 1 1 . . . . . . . 2 . Worker 8 | . . . . . . 2 . 1 . . . . 3 . . 1 . . . . . . . . . . 1 Builder 4 | . . . . . 2 2 . . . . . . . . . . . . . . . . . . . . . Tunneler 1 | . . . . . . . . . . . . . . . . . . 1 . . . . . . . . . Hauler 3 | . 1 . . . 1 . . . . . . . . . . . . . . . . . . . . . 1 Recycler 6 | . . . . . 1 . . . . . . . 1 . . 1 . . . . . . 1 . . 1 1 Minesweeper 5 | . . . . . . . . . . . . . . 1 . . . . 2 2 . . . . . . . Mechanic 2 | . . . . . . . . . . . . . . . . . . . . . . . . . . 2 . Operator 5 | . . . . . 1 . . . . . . . 1 . . . . 2 . . . . . . . . 1 Watcher 15 | . 3 . . . 1 1 . 1 . 3 . . 1 . . 1 . 3 . . . . 1 . . . . Swarmer 28 | . 3 . . . 2 3 3 . 3 . . . . . . 1 3 5 3 . . . . . . 2 . Saboteur 1 | . . . . . . . . . . . . . . . . . . . . . . . . . . 1 . Grunt 28 | . 3 . . . 2 . 3 . 2 . . . . . . 3 3 2 . 1 . . . . . 9 . Duelist 4 | . . . . . . . . . 3 . . . . . . . . . . . . . . . . 1 . Sentry 7 | . . . . . 3 1 . . . . . . . . . 1 1 1 . . . . . . . . . Specialist 1 | . . . . . . . . . 1 . . . . . . . . . . . . . . . . . . Hunter 5 | . . . . . . . . . . . . . . . . . 1 2 . . . . . 2 . . . Programmer 9 | . . . . . . . . . 1 . . . . . . 1 . . . 3 . . 1 . . 3 . Decomposer 4 | . . . . . . . . . . . . . . 3 . . . . 1 . . . . . . . . Best Kill Streak 11 | . 2 . . . 5 6 3 2 2 2 . . 2 1 . 3 2 3 2 3 . . 2 2 . 11 4 Combat Bots Only 8 | . 2 . . . 3 3 3 . 2 . . . . . . 3 2 3 2 2 . . 1 2 . 8 . Max Kills in Single Turn 11 | . 1 . . . 4 6 1 2 1 1 . . 1 1 . 1 1 1 1 1 . . 1 1 . 11 1 Gunslinging . | . . . . . . . . . . . . . . . . . . . . . . . . . . . . Exploded 8 | . . . . . 1 3 1 . 1 . . . . . . . . . . . . . . . . 8 . Melee 1 | . . . . . . . . . 1 . . . . . . 1 1 1 1 1 . . 1 1 . . . Uniques/NPCs Destroyed . | . . . . . . . . . . . . . . . . . . . . . . . . . . . . Combat | -11 -10 -10 -10 -9 -8 -7 -7 -6 -6 -6 -6 -6 -5 -5 -5 -4 -4 -4 -4 -4 -4 -3 -3 -3 -2 -2 -2 -------- Run | Scr Mat Min Exi Min Mat Fac Gar Fac Gar Fac Low Low Fac Upp Upp Fac Gar Fac Upp Upp War Pro Res Arm Res Qua Sec Damage Taken 6387 | . 251 . . . 268 104 176 . 361 111 6 . 51 . . 492 614 452 106 554 896 345 515 131 67 569 318 Core 5378 | . 210 . . . 213 89 132 . 310 91 5 . 40 . . 419 491 385 88 446 837 310 434 110 53 462 253 Absorbed by Shields . | . . . . . . . . . . . . . . . . . . . . . . . . . . . . Redirected to Core 3206 | . 116 . . . 179 47 115 . 171 70 2 . 32 . . 253 389 199 43 349 130 115 291 69 44 339 253 Core Remaining (%) 74 | 100 . . . 85 94 . 92 . . . . 79 . . 93 . . . . . . 37 . 14 . . . Volleys Fired 221 | . 54 . 1 . 15 3 13 1 42 8 1 . 3 . . 9 32 25 6 . . . . . . 8 . Largest 2 | . 1 . 1 . 1 1 1 1 1 1 1 . 1 . . 1 1 1 1 . . . . . . 2 . Hottest 100 | . 50 . 60 . 60 60 60 60 60 28 40 . 40 . . 40 50 50 50 . . . . . . 100 . Shots Fired 225 | . 54 . 1 . 15 3 13 1 43 8 1 . 3 . . 9 32 25 6 . . . . . . 11 . Gun 99 | . 54 . . . . . . . 37 8 . . . . . . . . . . . . . . . . . Cannon 39 | . . . 1 . 15 3 13 1 6 . . . . . . . . . . . . . . . . . . Launcher 11 | . . . . . . . . . . . . . . . . . . . . . . . . . . 11 . Special 76 | . . . . . . . . . . . 1 . 3 . . 9 32 25 6 . . . . . . . . Kinetic 45 | . . . . . . . . . 37 8 . . . . . . . . . . . . . . . . . Thermal 54 | . 54 . . . . . . . . . . . . . . . . . . . . . . . . . . Explosive 11 | . . . . . . . . . . . . . . . . . . . . . . . . . . 11 . Electromagnetic 39 | . . . 1 . 15 3 13 1 6 . . . . . . . . . . . . . . . . . . Robot Hit Streak 51 | . 18 . . . 7 5 4 5 32 40 41 . 44 . . 51 14 21 2 . . . . . . 4 . Robot Miss Streak 2 | . 2 . . . 2 . 1 . 2 . . . . . . 1 1 1 1 . . . . . . . . Penetration Max 1 | . . . . . . . . . 1 . . . . . . . . . . . . . . . . . . Secondary Targets . | . . . . . . . . . . . . . . . . . . . . . . . . . . . . Shots Hit Robots 397 | . 44 . . . 11 3 8 1 41 14 1 . 11 7 . 43 60 67 21 23 . . 9 12 5 4 12 Core Hits 241 | . 12 . . . 22 12 17 2 22 3 . . 6 5 . 14 12 24 8 9 . . 4 3 1 59 6 Critical Hits 7 | . . . . . . . . . 1 . . . . . . 2 . 2 . . . . 1 . . . 1 Critical Kills 1 | . . . . . . . . . . . . . . . . . . . . . . . 1 . . . . Critical Parts Destroyed 6 | . . . . . . . . . 1 . . . . . . 2 . 2 . . . . . . . . 1 Melee Attacks 437 | . . . . . . . . . 20 11 . . 16 7 . 42 84 86 19 23 . 6 60 26 10 3 24 Impact . | . . . . . . . . . . . . . . . . . . . . . . . . . . . . Slashing 418 | . . . . . . . . . 20 11 . . 16 7 . 42 84 86 19 23 . 6 58 23 8 3 12 Piercing 12 | . . . . . . . . . . . . . . . . . . . . . . . . . . . 12 Sneak Attacks 44 | . . . . . . . . . 2 . . . 5 4 . 9 4 7 3 3 . . 2 2 1 . 2 Combat Hostiles 11 | . . . . . . . . . 2 . . . . . . 3 4 1 . 1 . . . . . . . Follow-up Attacks . | . . . . . . . . . . . . . . . . . . . . . . . . . . . . Damage Inflicted 21083 | . 392 . . . 1589 881 454 346 1193 234 . . 700 522 . 1851 1551 2528 1054 1109 . . 441 349 122 5122 645 Guns 1068 | . 392 . . . . . . . 676 . . . . . . . . . . . . . . . . . . Cannons 168 | . . . . . 86 10 53 5 14 . . . . . . . . . . . . . . . . . . Explosions 8718 | . . . . . 1497 871 401 341 214 . . . . . . . . 272 . . . . . . . 5122 . Melee 11111 | . . . . . . . . . 289 234 . . 700 522 . 1851 1551 2244 1054 1109 . . 441 349 122 . 645 Ramming 18 | . . . . . 6 . . . . . . . . . . . . 12 . . . . . . . . . Kinetic 676 | . . . . . . . . . 676 . . . . . . . . . . . . . . . . . . Thermal 1020 | . 392 . . . 116 290 . . . . . . . . . . . 222 . . . . . . . . . Explosive 5122 | . . . . . . . . . . . . . . . . . . . . . . . . . . 5122 . Electromagnetic 3136 | . . . . . 1467 591 454 346 228 . . . . . . . . 50 . . . . . . . . . Impact . | . . . . . . . . . . . . . . . . . . . . . . . . . . . . Slashing 11111 | . . . . . . . . . 289 234 . . 700 522 . 1851 1551 2244 1054 1109 . . 441 349 122 . 645 Piercing . | . . . . . . . . . . . . . . . . . . . . . . . . . . . . Highest Corruption 34 | . . . 2 2 34 8 31 3 15 13 11 . . . . . . . . 3 3 . 6 6 . . . Average Corruption 7 | . . . 2 2 20 2 16 3 7 11 6 . . . . . . . . 2 3 . 3 6 . . . Corruption Purged 18 | . . . . . . . . . 5 2 11 . . . . . . . . . . . . . . . . Effects 156 | . . . 2 . 15 4 21 . 44 28 14 . . . . . . . . 1 . . 17 10 . . . Message Errors 28 | . . . 2 . 3 1 4 . 3 4 6 . . . . . . . . . . . 3 2 . . . Matter Fused 33 | . . . . . 3 2 3 . 9 5 5 . . . . . . . . . . . 3 3 . . . Heat Flow Errors 14 | . . . . . 2 . 1 . 4 3 1 . . . . . . . . 1 . . 2 . . . . Energy Discharges 18 | . . . . . . 1 4 . 7 3 1 . . . . . . . . . . . 1 1 . . . Parts Rejected 3 | . . . . . . . . . 2 . . . . . . . . . . . . . . 1 . . . Data Loss (minor) 11 | . . . . . . . 1 . 2 4 1 . . . . . . . . . . . 1 2 . . . Data Loss (major) 7 | . . . . . 1 . . . 1 1 . . . . . . . . . . . . 3 1 . . . Misfires 2 | . . . . . . . 1 . 1 . . . . . . . . . . . . . . . . . . Alerts 3 | . . . . . . . 1 . 1 1 . . . . . . . . . . . . . . . . . Misdirections 15 | . . . . . 4 . 2 . 4 5 . . . . . . . . . . . . . . . . . Targeting Errors 21 | . . . . . 2 . 3 . 10 2 . . . . . . . . . . . . 4 . . . . Weapon Failures 1 | . . . . . . . 1 . . . . . . . . . . . . . . . . . . . . Overload Shots . | . . . . . . . . . . . . . . . . . . . . . . . . . . . . Overflow Damage 2106 | . . . . . 45 66 . 18 81 15 . . 133 85 . 198 109 548 276 118 . . 25 . . 285 104 Projectiles . | . . . . . . . . . . . . . . . . . . . . . . . . . . . . Explosions 479 | . . . . . 45 66 . 18 4 . . . . . . . . 61 . . . . . . . 285 . Melee 1627 | . . . . . . . . . 77 15 . . 133 85 . 198 109 487 276 118 . . 25 . . . 104 Knockbacks . | . . . . . . . . . . . . . . . . . . . . . . . . . . . . Impact . | . . . . . . . . . . . . . . . . . . . . . . . . . . . . Kinetic . | . . . . . . . . . . . . . . . . . . . . . . . . . . . . Secondary . | . . . . . . . . . . . . . . . . . . . . . . . . . . . . Self-Inflicted Damage 302 | . . . . . 132 26 70 . 62 . . . . . . . . 12 . . . . . . . . . Shots 9 | . . . . . 2 1 3 . 3 . . . . . . . . . . . . . . . . . . Rammed 1 | . . . . . 1 . . . . . . . . . . . . . . . . . . . . . . Targets Rammed 1 | . . . . . 1 . . . . . . . . . . . . . . . . . . . . . . Kicked . | . . . . . . . . . . . . . . . . . . . . . . . . . . . . Crushed . | . . . . . . . . . . . . . . . . . . . . . . . . . . . . Highest Temperature 743 | . 98 . 28 . 243 68 275 38 286 307 118 . 54 . . 53 453 111 215 331 743 . 231 402 4 54 . Average Temperature 107 | . 33 . 18 . 66 25 81 18 58 111 52 . 13 . . 15 165 38 116 201 414 . 108 169 3 22 . Received Heat Transfer 1065 | . 126 . . . 36 27 33 . 93 12 . . 9 . . 165 201 84 . 12 . 21 57 . 27 162 . Effects 45 | . . . . . . . . . . 3 . . . . . . 13 . 1 3 22 . . 3 . . . Shutdowns 9 | . . . . . . . . . . . . . . . . . 4 . . . 4 . . 1 . . . Energy Bleed 8 | . . . . . . . . . . . . . . . . . 4 . 1 1 2 . . . . . . Interference 6 | . . . . . . . . . . 3 . . . . . . . . . 1 2 . . . . . . Matter Decay 2 | . . . . . . . . . . . . . . . . . 2 . . . . . . . . . . Short Circuit 6 | . . . . . . . . . . . . . . . . . 3 . . 1 1 . . 1 . . . Damage (minor) 6 | . . . . . . . . . . . . . . . . . . . . . 5 . . 1 . . . Damage (major) 6 | . . . . . . . . . . . . . . . . . . . . . 6 . . . . . . Damage (core) 2 | . . . . . . . . . . . . . . . . . . . . . 2 . . . . . . Siege Activations . | . . . . . . . . . . . . . . . . . . . . . . . . . . . . Robots Corrupted 2 | . . . . . 1 . 1 . . . . . . . . . . . . . . . . . . . . Combat Hostiles 2 | . . . . . 1 . 1 . . . . . . . . . . . . . . . . . . . . Parts Fried 21 | . . . . . 10 1 5 3 1 . . . . . . . . 1 . . . . . . . . . Impact Corruptions . | . . . . . . . . . . . . . . . . . . . . . . . . . . . . Robots Melted 1 | . 1 . . . . . . . . . . . . . . . . . . . . . . . . . . Combat Hostiles 1 | . 1 . . . . . . . . . . . . . . . . . . . . . . . . . . Parts Melted 3 | . 2 . . . . 1 . . . . . . . . . . . . . . . . . . . . . Heat Transferred 1597 | . 1147 . . . 150 150 . . . . . . . . . . . 150 . . . . . . . . . Parts Sabotaged . | . . . . . . . . . . . . . . . . . . . . . . . . . . . . Parts Stolen . | . . . . . . . . . . . . . . . . . . . . . . . . . . . . Parts Stripped . | . . . . . . . . . . . . . . . . . . . . . . . . . . . . Power Chain Reactions 3 | . . . . . 1 . . . . . . . . . . . . 2 . . . . . . . . . Missiles Intercepted . | . . . . . . . . . . . . . . . . . . . . . . . . . . . . Latent Energy Used 3956 | . . . 81 . 1803 325 964 200 583 . . . . . . . . . . . . . . . . . . LE Corruption 78 | . . . 2 . 32 7 22 3 12 . . . . . . . . . . . . . . . . . . Alert | -11 -10 -10 -10 -9 -8 -7 -7 -6 -6 -6 -6 -6 -5 -5 -5 -4 -4 -4 -4 -4 -4 -3 -3 -3 -2 -2 -2 ------- Run | Scr Mat Min Exi Min Mat Fac Gar Fac Gar Fac Low Low Fac Upp Upp Fac Gar Fac Upp Upp War Pro Res Arm Res Qua Sec Peak Influence 2264 | . 193 6 . . 454 212 186 528 650 319 . . 74 . . 245 249 402 . . . . 440 563 255 2264 1640 Initial 1100 | . . 6 . . . 149 27 72 284 253 . . . . . 12 . 96 . . . . . 5 203 107 1100 Average 200 | . 51 6 . . 212 102 64 81 385 234 . . 41 . . 65 122 123 . . . . 62 146 219 1925 1628 Maximum Alert Level 5 | . . . . . 2 1 . 2 2 1 . . . . . 1 1 2 . . . . 2 2 1 5 5 Low Security (%) 67 | 100 100 100 . 100 58 99 100 99 . 20 . . 100 . . 94 72 71 . . . . 90 83 . . . Level 1 23 | . . . . . 36 . . . 64 80 . . . . . 5 27 27 . . . . . . 100 . . Level 2 6 | . . . . . 4 . . . 35 . . . . . . . . 1 . . . . 9 16 . . . Level 3 . | . . . . . . . . . . . . . . . . . . . . . . . . . . . . Level 4 . | . . . . . . . . . . . . . . . . . . . . . . . . . . . . Level 5 . | . . . . . . . . . . . . . . . . . . . . . . . . . . . . High Security . | . . . . . . . . . . . . . . . . . . . . . . . . . . . . Max Security 3 | . . . . . . . . . . . . . . . . . . . . . . . . . . 99 99 Squads Dispatched 56 | . 2 . . . 1 3 . 1 . 3 . . 3 . . 6 . 8 . . . 1 7 . 1 14 6 Investigation 14 | . 2 . . . . 1 . 1 . 1 . . 1 . . 1 . 3 . . . 1 3 . . . . Extermination 9 | . . . . . . . . . . 1 . . 1 . . 2 . 2 . . . . 2 . 1 . . Reinforcement 6 | . . . . . 1 1 . . . . . . 1 . . 1 . 2 . . . . . . . . . Assault 22 | . . . . . . . . . . 1 . . . . . . . 1 . . . . 2 . . 12 6 Garrison 5 | . . . . . . 1 . . . . . . . . . 2 . . . . . . . . . 2 . Intercept . | . . . . . . . . . . . . . . . . . . . . . . . . . . . . Construction Impeded 1 | . . . . . . 1 . . . . . . . . . . . . . . . . . . . . . Haulers Reinforced 1 | . . . . . . . . . . . . . . . . 1 . . . . . . . . . . . Stealth | -11 -10 -10 -10 -9 -8 -7 -7 -6 -6 -6 -6 -6 -5 -5 -5 -4 -4 -4 -4 -4 -4 -3 -3 -3 -2 -2 -2 --------- Run | Scr Mat Min Exi Min Mat Fac Gar Fac Gar Fac Low Low Fac Upp Upp Fac Gar Fac Upp Upp War Pro Res Arm Res Qua Sec Distress Signals 15 | . . . . . . 1 . . . 2 . . . . . 4 . 4 . . . . 2 2 . . . Communications Jammed 47 | . . . . . . . . . . . . . . . . . . . . . . . 19 16 5 7 . Distress Signals 47 | . . . . . . . . . . . . . . . . . . . . . . . 19 16 5 7 . Times Spotted 337 | . 12 . . . 11 15 8 1 14 11 1 . 7 . . 23 46 50 9 12 2 19 41 7 9 38 1 Peak Tracking Total 24 | . 4 . . . 3 7 4 1 4 5 1 . 5 . . 4 7 8 4 8 2 13 14 6 6 24 6 Tactical Retreats 49 | . 1 . . . 1 1 3 . 6 3 . . . . . 2 9 4 2 2 . 3 7 . . 5 . Traps | -11 -10 -10 -10 -9 -8 -7 -7 -6 -6 -6 -6 -6 -5 -5 -5 -4 -4 -4 -4 -4 -4 -3 -3 -3 -2 -2 -2 ------- Run | Scr Mat Min Exi Min Mat Fac Gar Fac Gar Fac Low Low Fac Upp Upp Fac Gar Fac Upp Upp War Pro Res Arm Res Qua Sec Traps Triggered 25 | . 4 . . . . 2 5 1 . 1 . . 1 . . . 4 . . 2 3 . 1 . 1 . . Indirectly 1 | . . . . . . . 1 . . . . . . . . . . . . . . . . . . . . Trap Hack Attempts . | . . . . . . . . . . . . . . . . . . . . . . . . . . . . Triggered . | . . . . . . . . . . . . . . . . . . . . . . . . . . . . Disarmed 24 | . . . . . . . . . . . . . . . . . . . . . . . 24 . . . . Reprogrammed 60 | . 8 . . . . 4 . . . 4 . . . . . 1 . 13 . . . . 30 . . . . Reused 6 | . 1 . . . . . . . . . . . . . . . . 1 . 1 . . 3 . . . . Traps Extracted . | . . . . . . . . . . . . . . . . . . . . . . . . . . . . Installed 10 | . . . . . . . . . . . . . . 2 . . . . . 8 . . . . . . . Triggered 10 | . 1 . . . . . . . . . . . . . . . . 1 . 5 . . 3 . . . . Machines | -11 -10 -10 -10 -9 -8 -7 -7 -6 -6 -6 -6 -6 -5 -5 -5 -4 -4 -4 -4 -4 -4 -3 -3 -3 -2 -2 -2 ---------- Run | Scr Mat Min Exi Min Mat Fac Gar Fac Gar Fac Low Low Fac Upp Upp Fac Gar Fac Upp Upp War Pro Res Arm Res Qua Sec Machines Disabled 44 | . . . . . 8 7 . . 2 . . . . . . . 4 12 . . . 1 . 2 . 8 . Max in Single Turn 5 | . . . . . 2 5 . . 1 . . . . . . . 1 3 . . . 1 . 1 . 4 . Garrison Access 3 | . . . . . . . . . . 1 . . . . . . . 1 . . . . 1 . . . . Garrison Relay 6 | . . . . . . . . . 2 . . . . . . . 4 . . . . . . . . . . Machines Sabotaged 1 | . . . . . . . . . . . . . . . . . . . . . . 1 . . . . . Garrisons Compromised . | . . . . . . . . . . . . . . . . . . . . . . . . . . . . Overloaded Fab Kills . | . . . . . . . . . . . . . . . . . . . . . . . . . . . . Fab Network Shutdowns 3 | . . . . . . . . 1 . . . . . . . . . . . . . . 1 1 . . . Hacking | -11 -10 -10 -10 -9 -8 -7 -7 -6 -6 -6 -6 -6 -5 -5 -5 -4 -4 -4 -4 -4 -4 -3 -3 -3 -2 -2 -2 --------- Run | Scr Mat Min Exi Min Mat Fac Gar Fac Gar Fac Low Low Fac Upp Upp Fac Gar Fac Upp Upp War Pro Res Arm Res Qua Sec Machines Accessed 77 | . 7 . . . . 6 . 3 . 5 . . 3 . . 8 . 17 . . . 1 19 5 3 . . Terminals 51 | . 7 . . . . 4 . 1 . 3 . . . . . 5 . 11 . . . 1 13 4 2 . . Fabricators 11 | . . . . . . . . 1 . . . . 1 . . 1 . 4 . . . . 2 1 1 . . Repair Stations 1 | . . . . . . . . . . . . . . . . . . . . . . . 1 . . . . Recycling Units 1 | . . . . . . . . . . . . . 1 . . . . . . . . . . . . . . Scanalyzers 8 | . . . . . . 1 . . . 1 . . 1 . . 1 . 2 . . . . 2 . . . . Garrison Access 5 | . . . . . . 1 . 1 . 1 . . . . . 1 . . . . . . 1 . . . . Total Hacks 611 | . 46 . . . . 45 . 22 . 38 . . 12 . . 60 . 157 . . . 2 170 43 16 . . Successful 566 | . 40 . . . . 42 . 22 . 34 . . 12 . . 57 . 137 . . . 2 163 43 14 . . Failed 45 | . 6 . . . . 3 . . . 4 . . . . . 3 . 20 . . . . 7 . 2 . . Catastrophic 4 | . . . . . . . . . . . . . . . . . . 4 . . . . . . . . . Database Lockouts . | . . . . . . . . . . . . . . . . . . . . . . . . . . . . Manual 317 | . 35 . 1 . . 32 . 10 . 16 . . 3 . . 33 . 87 . . . 3 75 13 9 . . Terminals 491 | . 46 . . . . 39 . 10 . 31 . . . . . 44 . 132 . . . 2 142 35 10 . . Fabricators 76 | . . . . . . . . 9 . . . . 8 . . 10 . 23 . . . . 12 8 6 . . Repair Stations 2 | . . . . . . . . . . . . . . . . . . . . . . . 2 . . . . Recycling Units 1 | . . . . . . . . . . . . . 1 . . . . . . . . . . . . . . Scanalyzers 20 | . . . . . . 2 . . . 3 . . 3 . . 1 . 2 . . . . 9 . . . . Garrison Access 21 | . . . . . . 4 . 3 . 4 . . . . . 5 . . . . . . 5 . . . . Terminal Hacks 330 | . 25 . . . . 25 . 8 . 19 . . . . . 28 . 89 . . . . 106 24 6 . . Record 44 | . 1 . . . . . . . . 6 . . . . . . . 19 . . . . 10 7 1 . . Part Schematic 38 | . . . . . . 4 . 3 . . . . . . . 5 . 9 . . . . 17 . . . . Robot Schematic 4 | . . . . . . . . . . . . . . . . . . . . . . . 4 . . . . Robot Analysis 5 | . . . . . . . . . . . . . . . . 1 . 1 . . . . 2 1 . . . Prototype ID Bank 5 | . 1 . . . . 1 . . . 1 . . . . . . . 1 . . . . 1 . . . . Level Access Points 8 | . 1 . . . . 1 . . . 1 . . . . . 1 . 1 . . . . 1 1 1 . . Branch Access Points 9 | . 1 . . . . 1 . . . 1 . . . . . 1 . 2 . . . . 1 1 1 . . Emergency Access Points 3 | . 1 . . . . 1 . . . . . . . . . . . . . . . . 1 . . . . Machine Index 7 | . 1 . . . . 1 . 1 . . . . . . . . . 1 . . . . 1 1 1 . . Terminal Index 4 | . 1 . . . . . . . . 1 . . . . . 1 . . . . . . 1 . . . . Fabricator Index 2 | . 1 . . . . . . . . . . . . . . . . . . . . . 1 . . . . Scanalyzer Index 3 | . . . . . . 1 . . . . . . . . . 1 . . . . . . 1 . . . . Garrison Index 1 | . . . . . . . . . . . . . . . . 1 . . . . . . . . . . . Alert Level 6 | . . . . . . 2 . . . . . . . . . 1 . 3 . . . . . . . . . Unreport Threat 19 | . 1 . . . . 3 . . . . . . . . . . . 6 . . . . 9 . . . . Locate Traps 11 | . 1 . . . . . . . . 1 . . . . . 1 . 2 . . . . 6 . . . . Disarm Traps 5 | . . . . . . . . . . . . . . . . . . . . . . . 5 . . . . Reprogram Traps 22 | . 3 . . . . 2 . . . 1 . . . . . 1 . 5 . . . . 10 . . . . Dispatch Records 29 | . 3 . . . . 2 . 1 . 2 . . . . . 2 . 10 . . . . 8 1 . . . Security Status 11 | . 1 . . . . 2 . . . 1 . . . . . . . 1 . . . . 5 . 1 . . Surveillance Status 5 | . 1 . . . . . . . . . . . . . . . . 2 . . . . . 2 . . . Patrol Status 8 | . 1 . . . . 1 . 1 . . . . . . . 1 . 2 . . . . 1 1 . . . Investigation Status 5 | . 1 . . . . 1 . . . . . . . . . 1 . 1 . . . . . 1 . . . Extermination Status 4 | . . . . . . . . 1 . . . . . . . . . 1 . . . . 1 1 . . . Reinforcement Status 3 | . . . . . . . . . . . . . . . . . . 1 . . . . 2 . . . . Coupling Status 1 | . . . . . . . . . . . . . . . . . . . . . . . 1 . . . . Recall Investigation 10 | . 2 . . . . 1 . 1 . . . . . . . 1 . 2 . . . . 3 . . . . Recall Extermination 10 | . . . . . . . . . . 1 . . . . . 2 . 3 . . . . 3 . 1 . . Recall Reinforcements 9 | . . . . . . . . . . 1 . . . . . 1 . 4 . . . . 2 1 . . . Recall Assault 6 | . . . . . . . . . . 1 . . . . . . . 2 . . . . 2 1 . . . Hauler Manifests 5 | . . . . . . 1 . . . . . . . . . . . 2 . . . . 1 1 . . . Registered Components 5 | . . . . . . . . . . 1 . . . . . 1 . 1 . . . . 1 1 . . . Registered Prototypes 3 | . . . . . . . . . . . . . . . . 1 . . . . . . 1 1 . . . Zone Layout 20 | . 3 . . . . . . . . . . . . . . 4 . 7 . . . . 4 2 . . . Fabricator Hacks 52 | . . . . . . . . 7 . . . . 6 . . 8 . 13 . . . . 8 6 4 . . Network Status 1 | . . . . . . . . . . . . . . . . . . 1 . . . . . . . . . Load Schematic 21 | . . . . . . . . 3 . . . . 3 . . 3 . 6 . . . . 1 3 2 . . Build 30 | . . . . . . . . 4 . . . . 3 . . 5 . 6 . . . . 7 3 2 . . Repair Station Hacks 2 | . . . . . . . . . . . . . . . . . . . . . . . 2 . . . . Scan Component 1 | . . . . . . . . . . . . . . . . . . . . . . . 1 . . . . Repair 1 | . . . . . . . . . . . . . . . . . . . . . . . 1 . . . . Recycling Unit Hacks 1 | . . . . . . . . . . . . . 1 . . . . . . . . . . . . . . Report Inventory 1 | . . . . . . . . . . . . . 1 . . . . . . . . . . . . . . Scanalyzer 14 | . . . . . . 1 . . . 3 . . 2 . . . . . . . . . 8 . . . . Insert Component 7 | . . . . . . 1 . . . 2 . . 1 . . . . . . . . . 3 . . . . Analyze 7 | . . . . . . . . . . 1 . . 1 . . . . . . . . . 5 . . . . Garrison Access Hacks 7 | . . . . . . 1 . 2 . 2 . . . . . 1 . . . . . . 1 . . . . Unlock Access 4 | . . . . . . 1 . 1 . 1 . . . . . 1 . . . . . . . . . . . Coupler Status 3 | . . . . . . . . 1 . 1 . . . . . . . . . . . . 1 . . . . Unauthorized Hacks 160 | . 15 . . . . 15 . 5 . 10 . . 3 . . 20 . 35 . . . 2 38 13 4 . . Terminals 116 | . 15 . . . . 11 . 2 . 8 . . . . . 13 . 23 . . . 2 29 11 2 . . Track 31 | . 5 . . . . 3 . 1 . 2 . . . . . 4 . 6 . . . . 7 3 . . . Assimilate 12 | . . . . . . 1 . . . 1 . . . . . 1 . 4 . . . . 2 3 . . . Botnet 41 | . 6 . . . . 4 . 1 . 3 . . . . . 5 . 7 . . . . 11 3 1 . . Detonate 4 | . . . . . . 2 . . . . . . . . . . . 2 . . . . . . . . . Disrupt 18 | . 2 . . . . . . . . 1 . . . . . 2 . 3 . . . 1 7 1 1 . . Operators 9 | . 2 . . . . 1 . . . 1 . . . . . 1 . 1 . . . . 2 1 . . . Sabotage 1 | . . . . . . . . . . . . . . . . . . . . . . 1 . . . . . Fabricators 24 | . . . . . . . . 2 . . . . 2 . . 2 . 10 . . . . 4 2 2 . . Report 1 | . . . . . . . . . . . . . . . . . . 1 . . . . . . . . . Prioritize 11 | . . . . . . . . 1 . . . . 1 . . 1 . 4 . . . . 2 1 1 . . Siphon 11 | . . . . . . . . 1 . . . . 1 . . 1 . 4 . . . . 2 1 1 . . Overload 1 | . . . . . . . . . . . . . . . . . . 1 . . . . . . . . . Repair Stations . | . . . . . . . . . . . . . . . . . . . . . . . . . . . . Recycling Units . | . . . . . . . . . . . . . . . . . . . . . . . . . . . . Scanalyzers 6 | . . . . . . 1 . . . . . . 1 . . 1 . 2 . . . . 1 . . . . Extract 6 | . . . . . . 1 . . . . . . 1 . . 1 . 2 . . . . 1 . . . . Garrison Access 14 | . . . . . . 3 . 1 . 2 . . . . . 4 . . . . . . 4 . . . . Restock 2 | . . . . . . . . . . . . . . . . 1 . . . . . . 1 . . . . Decoy 1 | . . . . . . . . 1 . . . . . . . . . . . . . . . . . . . Redirect 2 | . . . . . . . . . . . . . . . . 1 . . . . . . 1 . . . . Reprogram 5 | . . . . . . 2 . . . 1 . . . . . 1 . . . . . . 1 . . . . Intercept 1 | . . . . . . . . . . . . . . . . 1 . . . . . . . . . . . Watchers 3 | . . . . . . 1 . . . 1 . . . . . . . . . . . . 1 . . . . Data Cores Recovered . | . . . . . . . . . . . . . . . . . . . . . . . . . . . . Used . | . . . . . . . . . . . . . . . . . . . . . . . . . . . . Hacking Detections 52 | . 5 . . . . 5 . 2 . 4 . . 1 . . 7 . 8 . . . 1 13 4 2 . . Full Trace Events 6 | . 2 . . . . . . 1 . 1 . . . . . . . . . . . . 2 . . . . Feedback Events 1 | . . . . . . . . . . . . . . . . . . . . . . . 1 . . . . Corruption 1 | . . . . . . . . . . . . . . . . . . . . . . . 1 . . . . Feedback Blocked . | . . . . . . . . . . . . . . . . . . . . . . . . . . . . Robot Schematics Acquired 4 | . . . . . . . . . . . . . . . . . . . . . . . 4 . . . . Robots Built 1 | . . . . . . . . . . . . . . . . . . . . . . . 1 . . . . Matter 285 | . . . . . . . . . . . . . . . . . . . . . . . 285 . . . . Time 76 | . . . . . . . . . . . . . . . . . . . . . . . 76 . . . . Total Robot Build Rating 5 | . . . . . . . . . . . . . . . . . . . . . . . 5 . . . . Part Schematics Acquired 68 | . . . . . . 5 . 3 . 1 . . 7 . . 9 . 20 . . . . 23 . . . . Parts Built 27 | . . . . . . . . 6 . . . . 3 . . 5 . 5 . . . . 1 5 2 . . Matter 4398 | . . . . . . . . 637 . . . . 522 . . 828 . 885 . . . . 417 629 480 . . Time 961 | . . . . . . . . 121 . . . . 89 . . 276 . 247 . . . . 74 71 83 . . Total Part Build Rating 169 | . . . . . . . . 30 . . . . 16 . . 32 . 33 . . . . 9 33 16 . . Parts Repaired 1 | . . . . . . . . . . . . . . . . . . . . . . . 1 . . . . Time 14 | . . . . . . . . . . . . . . . . . . . . . . . 14 . . . . Parts Recycled . | . . . . . . . . . . . . . . . . . . . . . . . . . . . . Recycled Matter . | . . . . . . . . . . . . . . . . . . . . . . . . . . . . Retrieved Matter . | . . . . . . . . . . . . . . . . . . . . . . . . . . . . Retrieved Components . | . . . . . . . . . . . . . . . . . . . . . . . . . . . . Parts Scanalyzed 5 | . . . . . . . . . . 1 . . 1 . . . . . . . . . 3 . . . . Part Schematics Acquired 5 | . . . . . . . . . . 1 . . 1 . . . . . . . . . 3 . . . . Parts Damaged . | . . . . . . . . . . . . . . . . . . . . . . . . . . . . Bothacking | -11 -10 -10 -10 -9 -8 -7 -7 -6 -6 -6 -6 -6 -5 -5 -5 -4 -4 -4 -4 -4 -4 -3 -3 -3 -2 -2 -2 ------------ Run | Scr Mat Min Exi Min Mat Fac Gar Fac Gar Fac Low Low Fac Upp Upp Fac Gar Fac Upp Upp War Pro Res Arm Res Qua Sec Used RIF Installer 2 | . . . . . . . 1 . 1 . . . . . . . . . . . . . . . . . . Hotswap 1 | . . . . . . . . . 1 . . . . . . . . . . . . . . . . . . Robots Hacked 62 | . . . . . . . . . . . 1 . 2 . . 7 24 19 5 . . . 1 1 2 . . Non-combat 8 | . . . . . . . . . . . . . . . . 1 . 5 1 . . . . . 1 . . Combat 54 | . . . . . . . . . . . 1 . 2 . . 6 24 14 4 . . . 1 1 1 . . Robot Hacks Applied 69 | . . . . . . . . . . . 1 . 3 . . 9 26 21 5 . . . 1 1 2 . . parse_system 4 | . . . . . . . . . . . . . . . . 1 1 2 . . . . . . . . . start_evac 1 | . . . . . . . . . . . . . . . . . . 1 . . . . . . . . . find_chute 1 | . . . . . . . . . . . . . . . . 1 . . . . . . . . . . . drop_inventory 1 | . . . . . . . . . . . . . . . . . . . . . . . . . 1 . . purge_threat 1 | . . . . . . . . . . . . . . . . . . 1 . . . . . . . . . find_garrison 2 | . . . . . . . . . . . . . 1 . . . . 1 . . . . . . . . . focus_fire 1 | . . . . . . . . . . . . . . . . . 1 . . . . . . . . . . scatter_targeting 1 | . . . . . . . . . . . . . . . . . . 1 . . . . . . . . . overload_power 7 | . . . . . . . . . . . . . . . . . 1 3 3 . . . . . . . . disable_weapons 1 | . . . . . . . . . . . . . . . . . . 1 . . . . . . . . . go_dormant 3 | . . . . . . . . . . . . . . . . 1 2 . . . . . . . . . . overwrite_iff 25 | . . . . . . . . . . . . . . . . 5 15 3 2 . . . . . . . . streamctrl_high 5 | . . . . . . . . . . . . . . . . . 3 2 . . . . . . . . . formatsys_high 16 | . . . . . . . . . . . 1 . 2 . . 1 3 6 . . . . 1 1 1 . . Relay Couplers Released 13 | . . . . . . . . . 3 1 . . . . . 2 7 . . . . . . . . . . Machine Destruction 11 | . . . . . . . . . 3 1 . . . . . . 7 . . . . . . . . . . Programmers 2 | . . . . . . . . . . . . . . . . 2 . . . . . . . . . . . Attached 8 | . . . . . . . . . 1 . 1 . . . . 1 3 1 . . . . 1 . . . . Robots Rewired 10 | . . . . . . . . . . . . . 1 . . . 6 . . . . . . 3 . . . Allies Hacked 3 | . . . . . . . . . . . . . 1 . . . . 1 . . . . 1 . . . . Hacks Repelled . | . . . . . . . . . . . . . . . . . . . . . . . . . . . . Allies | -11 -10 -10 -10 -9 -8 -7 -7 -6 -6 -6 -6 -6 -5 -5 -5 -4 -4 -4 -4 -4 -4 -3 -3 -3 -2 -2 -2 -------- Run | Scr Mat Min Exi Min Mat Fac Gar Fac Gar Fac Low Low Fac Upp Upp Fac Gar Fac Upp Upp War Pro Res Arm Res Qua Sec Total Allies 68 | . . . . . . 3 . . . . 1 . 3 . . 8 27 14 2 . . . 4 5 1 . . Largest Group 6 | . . . . . . 2 . . . . 1 1 3 . . 2 5 6 1 . . . 2 4 1 . . Highest-Rated Group 288 | . . . . . . 32 . . . . 32 32 158 . . 75 230 288 12 . . . 86 232 64 . . Highest-Rated Ally 64 | . . . . . . 16 . . . . 32 32 60 . . 49 58 58 12 . . . 64 64 64 . . Total Orders . | . . . . . . . . . . . . . . . . . . . . . . . . . . . . Ally Attacks 242 | . . . . . . 11 . . . . . . 15 . . 28 83 61 3 . . . 8 31 2 . . Total Damage 7335 | . . . . . . 160 . . . . . . 512 . . 709 1537 2731 27 . . . 405 1224 30 . . Kills 33 | . . . . . . 1 . . . . . . 3 . . 6 6 13 . . . . 1 3 . . . Allies Corrupted 3 | . . . . . . . . . . . . . 1 . . . . 2 . . . . . . . . . Allies Melted . | . . . . . . . . . . . . . . . . . . . . . . . . . . . . Intel | -11 -10 -10 -10 -9 -8 -7 -7 -6 -6 -6 -6 -6 -5 -5 -5 -4 -4 -4 -4 -4 -4 -3 -3 -3 -2 -2 -2 ------- Run | Scr Mat Min Exi Min Mat Fac Gar Fac Gar Fac Low Low Fac Upp Upp Fac Gar Fac Upp Upp War Pro Res Arm Res Qua Sec Robot Analysis Total 5 | . . . . . . . . . . . . . . . . 1 . 1 . . . . 2 1 . . . Derelict Logs Recovered 9 | . . . . . . . . . . . 2 . . 2 1 . . . 2 2 . . . . . . . Drone Launches . | . . . . . . . . . . . . . . . . . . . . . . . . . . . . Drone Recoveries . | . . . . . . . . . . . . . . . . . . . . . . . . . . . . Exploration | -11 -10 -10 -10 -9 -8 -7 -7 -6 -6 -6 -6 -6 -5 -5 -5 -4 -4 -4 -4 -4 -4 -3 -3 -3 -2 -2 -2 ------------- Run | Scr Mat Min Exi Min Mat Fac Gar Fac Gar Fac Low Low Fac Upp Upp Fac Gar Fac Upp Upp War Pro Res Arm Res Qua Sec Turns Passed 12392 | 21 556 108 235 82 260 427 487 305 1253 500 917 51 576 115 20 875 1309 1479 248 282 76 141 1077 361 252 225 154 Spaces Moved 12606 | 38 550 214 246 42 159 799 271 264 496 649 631 63 557 276 51 786 958 1531 497 471 105 302 1486 326 347 317 174 Core 282 | 38 87 . . . . . . . . . . . . . . . 116 22 . . . . . 19 . . . Treads . | . . . . . . . . . . . . . . . . . . . . . . . . . . . . Legs . | . . . . . . . . . . . . . . . . . . . . . . . . . . . . Wheels . | . . . . . . . . . . . . . . . . . . . . . . . . . . . . Hover . | . . . . . . . . . . . . . . . . . . . . . . . . . . . . Flight 12324 | . 463 214 246 42 159 799 271 264 496 649 631 63 557 276 51 786 842 1509 497 471 105 302 1486 307 347 317 174 Fastest Speed 32 | 50 37 37 37 197 114 32 32 32 32 32 32 34 32 34 34 32 37 37 37 37 37 40 37 37 37 37 34 Average Speed 43 | 50 39 37 90 197 127 43 96 52 36 32 33 34 32 34 34 35 57 39 37 37 38 40 37 48 37 53 48 Slowest Speed 200 | 50 120 37 197 197 197 197 107 107 106 37 34 34 34 34 34 37 200 200 37 37 105 40 120 150 37 117 117 Overloaded Moves . | . . . . . . . . . . . . . . . . . . . . . . . . . . . . Propulsion Burnouts . | . . . . . . . . . . . . . . . . . . . . . . . . . . . . Robots Hopped 30 | . 4 . . . . 4 . . . 1 . 3 4 . . 1 1 1 . 1 . . 7 . . 3 . Cave-ins Triggered 5 | . . . . . . . . . . . . . . . . . . . . . . . 4 . . . 1 Exploration Rate (%) 36 | 3 64 51 61 23 21 16 43 9 68 15 77 12 17 56 12 14 86 36 68 74 21 48 38 25 12 56 9 Regions Visited 27 Branch Regions 14 Pre-discovered Areas 1 | . . . . . . . . . . . . . . . . . . . 1 . . . . . . . . Known Exits Taken 24 | 1 1 1 1 1 1 1 . 1 . 1 1 1 1 1 1 1 . 1 1 1 1 1 1 1 1 1 . Unknown Exits Taken . | . . . . . . . . . . . . . . . . . . . . . . . . . . . . Scrap Searched 9 | . . 1 . . . . . . . . 2 . . . . . . . 4 1 . 1 . . . . . Spaces Dug 171 | . . . . . . . . . 13 5 . . 8 . . 5 26 43 . . . 5 43 12 4 1 6 Terrain Destroyed 569 | . . . . . 158 38 22 20 45 6 . . 8 . . 5 26 64 . . . 5 43 12 4 107 6 Melee 171 | . . . . . . . . . 13 5 . . 8 . . 5 26 43 . . . 5 43 12 4 1 6 Projectile 1 | . . . . . . . . . . 1 . . . . . . . . . . . . . . . . . AOE 397 | . . . . . 158 38 22 20 32 . . . . . . . . 21 . . . . . . . 106 . Terrain Rammed 1 | . . . . . . . . . . . . . . . . . . 1 . . . . . . . . . Walls Destroyed . | . . . . . . . . . . . . . . . . . . . . . . . . . . . . Machines Disabled . | . . . . . . . . . . . . . . . . . . . . . . . . . . . . Actions | -11 -10 -10 -10 -9 -8 -7 -7 -6 -6 -6 -6 -6 -5 -5 -5 -4 -4 -4 -4 -4 -4 -3 -3 -3 -2 -2 -2 --------- Run | Scr Mat Min Exi Min Mat Fac Gar Fac Gar Fac Low Low Fac Upp Upp Fac Gar Fac Upp Upp War Pro Res Arm Res Qua Sec Total 18601 | 39 825 242 257 42 201 875 482 430 1498 911 1333 88 921 285 53 1314 1589 2277 531 543 140 312 1903 490 458 353 209 Wait 4805 | . 209 27 1 1 13 53 122 147 899 224 698 29 316 1 3 449 413 597 4 23 34 5 331 120 73 12 1 Move 12522 | 37 541 213 245 41 158 790 270 263 495 646 630 56 550 275 50 783 955 1528 496 468 104 301 1471 325 346 311 174 Hop 26 | . 4 . . . . 4 . . . 1 . 3 2 . . 1 1 1 . 1 . . 6 . . 2 . Pick Up 32 | 1 . . . . . . 1 3 6 1 . . 2 . . 2 6 2 . . . . 2 3 2 1 . Fast Attach 87 | 1 9 1 6 . . 5 . 6 6 9 . . 3 . . 8 5 3 . . . . 12 5 2 2 4 Attach 34 | . . . . . 1 4 1 . 5 1 1 . 1 . . . 4 2 . . . . 7 2 . 3 2 Detach 19 | . . . . . . 4 . . 4 . . . 1 . . . . . . . . . 4 1 1 4 . Swap 14 | . 1 . . . 1 2 . 2 1 1 1 . . . . 2 . . . . . . . . 1 2 . Drop 86 | . . 1 4 . . 4 . 8 9 9 1 . 3 . . 9 8 5 . 1 2 . 5 5 4 4 4 Fire 221 | . 54 . 1 . 15 3 13 1 42 8 1 . 3 . . 9 32 25 6 . . . . . . 8 . Melee 437 | . . . . . . . . . 20 11 . . 16 7 . 42 84 86 19 23 . 6 60 26 10 3 24 Ram 2 | . . . . . 1 . . . . . . . . . . . . 1 . . . . . . . . . Kick . | . . . . . . . . . . . . . . . . . . . . . . . . . . . . Crush . | . . . . . . . . . . . . . . . . . . . . . . . . . . . . Escape Stasis 128 | . . . . . . . 72 . . . . . 11 . . . 26 . . . . . 1 . 18 . . Rewire 33 | . . . . . . . . . 3 . 1 . 3 . . 1 18 2 . 1 . . . 3 1 . . Trap 10 | . . . . . . . . . . . . . . 2 . . . . . 8 . . . . . . . Miscellaneous 145 | . 7 . . . 12 6 3 . 8 . . . 10 . . 8 37 25 6 18 . . 4 . . 1 . Route ------- -11/Scrapyard -10/Materials (discovered 4 exits: *Mat x3 / *Min) -10/Mines (discovered 2 exits: *Mat / *Exi) -10/Exiles -9/Mines -8/Materials -7/Factory (discovered 7 exits: *Fac x4 / *Low x2 / Gar) -7/Garrison -6/Factory (discovered 2 exits: *Low / Gar) -6/Garrison (discovered 2 exits: *Fac x2) -6/Factory (discovered 8 exits: *Fac x4 / *Low x2 / Ext x2) -6/Lower Caves -6/Lower Caves -5/Factory (discovered 2 exits: Fac / *Upp) -5/Upper Caves -5/Upper Caves -4/Factory (discovered 7 exits: Res x4 / *Upp x2 / Gar) -4/Garrison -4/Factory (discovered 6 exits: *Res x4 / *Upp x2) -4/Upper Caves -4/Upper Caves (discovered 2 exits: *Res / *War) -4/Warlord -3/Proximity Caves -3/Research (discovered 6 exits: Res x3 / *Arm / *Tes x2) -3/Armory (discovered 2 exits: *Res x2) -2/Research (discovered 5 exits: Acc x3 / *Qua x2) -2/Quarantine -2/Section 7 History --------- Turn | Location | Event 1 | -11/Scrapyard | Upgraded with Propulsion slot (x1) 1 | -11/Scrapyard | Upgraded with Utility slot (x1) 11 | -11/Scrapyard | Identified exit to Materials 11 | -11/Scrapyard | Discovered exit to Materials (range 16) 22 | -11/Scrapyard | Entered Materials 306 | -10/Materials | Build established: Hacker-Mutant 491 | -10/Materials | Identified exit to Materials 491 | -10/Materials | Discovered exit to Materials (range 13) 491 | -10/Materials | Identified exit to Mines 578 | -10/Materials | Entered Mines 580 | -10/Mines | YI-UF0 nonchalantly dropped a Grenade Launcher on the ground 674 | -10/Mines | Discovered exit to Materials (range 9) 684 | -10/Mines | Deemed a non-threat by the Exiles lab entrance 685 | -10/Mines | Identified exit to Exiles 685 | -10/Mines | Discovered exit to Exiles (range 5) 686 | -10/Mines | Entered Exiles 688 | -10/Exiles | Reached level 2 696 | -10/Exiles | Met 8R-AWN 698 | -10/Exiles | Upgraded with Utility slot (x1) 701 | -10/Exiles | Met EX-HEX 713 | -10/Exiles | Met EX-BIN 717 | -10/Exiles | Aligned with FarCom system 718 | -10/Exiles | Given EX-Vault access code 726 | -10/Exiles | Opened EX-Vault 730 | -10/Exiles | Found Prototype Energy Cannon 730 | -10/Exiles | Identified Latent Energy Streamer 762 | -10/Exiles | Warned to stay clear of 0b10 Research branches 796 | -10/Exiles | Met EX-DEC 901 | -10/Exiles | Identified exit to Mines 901 | -10/Exiles | Discovered exit to Mines (range 12) 921 | -10/Exiles | Left Exiles lab with Latent Energy Streamer 921 | -10/Exiles | Entered Mines 980 | -9/Mines | Identified exit to Materials 980 | -9/Mines | Discovered exit to Materials (range 5) 995 | -9/Mines | Build established: Wizard-Mutant 1003 | -9/Mines | Entered Materials 1005 | -8/Materials | Reached level 3 1005 | -8/Materials | Reached level 4 1005 | -8/Materials | Reached level 5 1005 | -8/Materials | Reached level 6 1007 | -8/Materials | Upgraded with Propulsion slot (x1) 1046 | -8/Materials | System corruption reached 10% 1191 | -8/Materials | Reached level 7 1192 | -8/Materials | System corruption reached 30% 1231 | -8/Materials | Identified exit to Factory 1231 | -8/Materials | Discovered exit to Factory (range 15) 1263 | -8/Materials | Entered Factory 1265 | -7/Factory | Reached level 8 1265 | -7/Factory | Reached level 9 1267 | -7/Factory | Upgraded with Utility slot (x1) 1339 | -7/Factory | Identified exit to Garrison 1452 | -7/Factory | Identified exit to Factory 1452 | -7/Factory | Identified exit to Lower Caves 1662 | -7/Factory | Reached level 10 1670 | -7/Factory | Garrison activated, responded to threat 1690 | -7/Factory | Entered Garrison 1692 | -7/Garrison | Installed Relay Interface Framework 1800 | -7/Garrison | Triggered checkpoint 1823 | -7/Garrison | System corruption reached 10% 2024 | -7/Garrison | Reached level 11 2136 | -7/Garrison | System corruption reached 30% 2164 | -7/Garrison | Discovered exit to Factory (range 12) 2177 | -7/Garrison | Entered Factory 2179 | -6/Factory | Reached level 12 2179 | -6/Factory | Reached level 13 2329 | -6/Factory | Fabricated Q-thruster (x2) 2355 | -6/Factory | Fabricated Hacking Suite (x1) 2378 | -6/Factory | Fabricated System Backup Module (x2) 2397 | -6/Factory | Fabricated System Shield (x1) 2428 | -6/Factory | Identified exit to Lower Caves 2428 | -6/Factory | Discovered exit to Lower Caves (range 18) 2479 | -6/Factory | Local fabrication network quarantined 2482 | -6/Factory | Identified exit to Garrison 2482 | -6/Factory | Entered Garrison 2592 | -6/Garrison | Build established: Wizard-Sprinter 3184 | -6/Garrison | System corruption reached 10% 3244 | -6/Garrison | Triggered checkpoint 3319 | -6/Garrison | Spotted B-75 Beast 3364 | -6/Garrison | Reached level 14 3368 | -6/Garrison | Upgraded with Utility slot (x1) 3374 | -6/Garrison | Garrison Relay disabled 3423 | -6/Garrison | Build established: Wizard-Mutant 3426 | -6/Garrison | Identified exit to Factory 3426 | -6/Garrison | Discovered exit to Factory (range 12) 3684 | -6/Garrison | Triggered checkpoint 3716 | -6/Garrison | Garrison Relay disabled 3727 | -6/Garrison | Discovered exit to Factory (range 12) 3733 | -6/Garrison | Expanded RIF knowledge: Hotswap 3735 | -6/Garrison | Entered Factory 3758 | -6/Factory | Identified exit to Garrison 3837 | -6/Factory | Discovered exit to Lower Caves (range 13) 3862 | -6/Factory | Spotted B-75 Beast 3949 | -6/Factory | Identified exit to Factory 3949 | -6/Factory | Discovered exit to Factory (range 13) 4052 | -6/Factory | Identified exit to Extension 4059 | -6/Factory | Build established: Wizard-Sprinter 4235 | -6/Factory | Entered Lower Caves 4237 | -6/Lower Caves | Reached level 15 4865 | -6/Lower Caves | Spotted B-75 Beast 4961 | -6/Lower Caves | Learned 8 Factory zone layouts 4974 | -6/Lower Caves | Learned Factory stockpile data 4992 | -6/Lower Caves | Encountered a Warlord checkpoint 5021 | -6/Lower Caves | Identified exit to Lower Caves 5021 | -6/Lower Caves | Discovered exit to Lower Caves (range 11) 5130 | -6/Lower Caves | Build established: Wizard-Mutant 5152 | -6/Lower Caves | Entered another Lower Caves area 5152 | -6/Lower Caves | Accompanied by 1 ally 5168 | -6/Lower Caves | Discovered exit to Factory (range 11) 5203 | -6/Lower Caves | Entered Factory 5203 | -5/Factory | Accompanied by 1 ally 5204 | -5/Factory | Identified exit to Factory 5205 | -5/Factory | Reached level 16 5205 | -5/Factory | Upgraded with Weapon slot (x1) 5398 | -5/Factory | Fabricated Imp. Cloaking Device (x1) 5418 | -5/Factory | Fabricated Actuator Array (x1) 5462 | -5/Factory | Fabricated Adv. Power Amplifier (x1) 5755 | -5/Factory | Reached level 17 5775 | -5/Factory | Identified exit to Upper Caves 5775 | -5/Factory | Discovered exit to Upper Caves (range 3) 5779 | -5/Factory | Entered Upper Caves 5783 | -5/Upper Caves | Upgraded with Utility slot (x1) 5837 | -5/Upper Caves | Learned Factory trap positions 5865 | -5/Upper Caves | Learned location of 1 exit from Factory 5881 | -5/Upper Caves | Identified exit to Upper Caves 5881 | -5/Upper Caves | Discovered exit to Upper Caves (range 6) 5894 | -5/Upper Caves | Entered another Upper Caves area 5910 | -5/Upper Caves | Discovered exit to Factory (range 10) 5911 | -5/Upper Caves | Learned Factory terminal intel 5914 | -5/Upper Caves | Entered Factory 5915 | -4/Factory | Identified exit to Research 5916 | -4/Factory | Loaded intel: 122 trap records 5916 | -4/Factory | Reached level 18 5916 | -4/Factory | Reached level 19 5917 | -4/Factory | Loaded intel: 20 terminal locations 5917 | -4/Factory | Upgraded with Power slot (x1) 5920 | -4/Factory | Spotted B-86 Titan 5924 | -4/Factory | Identified exit to Upper Caves 5979 | -4/Factory | Fabricated Adv. Hacking Suite (x1) 6034 | -4/Factory | Fabricated Adv. Hacking Suite (x1) 6089 | -4/Factory | Fabricated Adv. System Shield (x1) 6145 | -4/Factory | Fabricated Adv. System Shield (x1) 6455 | -4/Factory | Reached level 20 6539 | -4/Factory | Identified exit to Garrison 6586 | -4/Factory | Upgraded with Utility slot (x1) 6626 | -4/Factory | Garrison activated, responded to threat 6744 | -4/Factory | Fabricated Adv. Remote Datajack (x1) 6789 | -4/Factory | Entered Garrison 6819 | -4/Garrison | Spotted B-86 Titan 6842 | -4/Garrison | Triggered checkpoint 6862 | -4/Garrison | Triggered checkpoint 6876 | -4/Garrison | Reached level 21 6896 | -4/Garrison | Garrison Relay disabled 7082 | -4/Garrison | Triggered checkpoint 7084 | -4/Garrison | Garrison Relay disabled 7289 | -4/Garrison | Triggered checkpoint 7538 | -4/Garrison | Triggered checkpoint 7549 | -4/Garrison | Garrison Relay disabled 7549 | -4/Garrison | Reached level 22 7684 | -4/Garrison | Triggered checkpoint 7732 | -4/Garrison | Garrison Relay disabled 7842 | -4/Garrison | Identified exit to Factory 7842 | -4/Garrison | Discovered exit to Factory (range 12) 8098 | -4/Garrison | Entered Factory 8098 | -4/Factory | Accompanied by 5 allies 8157 | -4/Factory | Reached level 23 8709 | -4/Factory | Fabricated Lgt. Antimatter Reactor (x2) 8778 | -4/Factory | Fabricated Biomechanical Wings (x1) 8856 | -4/Factory | Discovered exit to Research (range 17) 9056 | -4/Factory | Fabricated Matter Neutralizer (x2) 9083 | -4/Factory | Reached level 24 9086 | -4/Factory | Upgraded with Utility slot (x1) 9577 | -4/Factory | Entered Upper Caves 9666 | -4/Upper Caves | Learned Research stockpile data 9804 | -4/Upper Caves | Learned location of Quarantine (-2) 9806 | -4/Upper Caves | Identified exit to Upper Caves 9806 | -4/Upper Caves | Discovered exit to Upper Caves (range 18) 9825 | -4/Upper Caves | Entered another Upper Caves area 9833 | -4/Upper Caves | Discovered exit to Research (range 6) 9853 | -4/Upper Caves | Encountered a Warlord checkpoint 10021 | -4/Upper Caves | Reached level 25 10059 | -4/Upper Caves | Attracted the attention of an 0b10 base 10075 | -4/Upper Caves | Learned location of 1 exit from Proximity Caves 10094 | -4/Upper Caves | Identified exit to Warlord 10107 | -4/Upper Caves | Entered Warlord 10121 | -4/Warlord | System corruption cleaned by Quarantine Array 10125 | -4/Warlord | RIF detected upon attempting to enter Warlord's base 10125 | -4/Warlord | Attacked by Warlord forces 10129 | -4/Warlord | Spotted XU-7P4(B) 10129 | -4/Warlord | Spotted 70-MLJ(B) 10180 | -4/Warlord | Identified exit to Proximity Caves 10180 | -4/Warlord | Discovered exit to Proximity Caves (range 9) 10183 | -4/Warlord | Entered Proximity Caves 10254 | -3/Proximity Caves | Attracted the attention of an 0b10 checkpoint 10266 | -3/Proximity Caves | Core integrity fell below 50% 10273 | -3/Proximity Caves | Attracted the attention of an 0b10 base 10324 | -3/Proximity Caves | Entered Research 10325 | -3/Research | Core integrity fell below 50% 10326 | -3/Research | Reached level 26 10326 | -3/Research | Reached level 27 10331 | -3/Research | Identified exit to Research 10331 | -3/Research | Identified exit to Armory 10331 | -3/Research | Identified exit to Testing 10543 | -3/Research | Spotted B-86 Titan 10683 | -3/Research | Fabricated Cld. Q-thruster? 10860 | -3/Research | Crushed by falling debris 11017 | -3/Research | Local fabrication network quarantined 11021 | -3/Research | Repaired Chainsword 11026 | -3/Research | Fabricated A-15 Conveyor? 11074 | -3/Research | First assault squad dispatched 11186 | -3/Research | Crushed by falling debris 11199 | -3/Research | Crushed by falling debris 11331 | -3/Research | Crushed by falling debris 11331 | -3/Research | Spotted B-86 Titan 11344 | -3/Research | Core integrity fell below 20% 11401 | -3/Research | Entered Armory 11414 | -3/Armory | Found Adv. Force Booster 11675 | -3/Armory | Fabricated Ragnarok Missile Launcher (x1) 11695 | -3/Armory | Fabricated Impulse Thruster (x2) 11702 | -3/Armory | Local fabrication network quarantined 11716 | -3/Armory | Fabricated Imp. System Backup Module (x2) 11762 | -3/Armory | Entered Research 11763 | -2/Research | Core integrity fell below 50% 11763 | -2/Research | Core integrity fell below 20% 11764 | -2/Research | Reached level 28 11764 | -2/Research | Reached level 29 11946 | -2/Research | Fabricated Adv. Micro-nuke Launcher (x1) 11980 | -2/Research | Fabricated Adv. Remote Datajack (x1) 11999 | -2/Research | Identified exit to Quarantine 11999 | -2/Research | Identified exit to Access 12008 | -2/Research | Spotted B-90 Cyclops 12014 | -2/Research | Entered Quarantine 12015 | -2/Quarantine | Maximum security lockdown engaged 12016 | -2/Quarantine | Reached level 30 12016 | -2/Quarantine | Upgraded with Weapon slot (x1) 12070 | -2/Quarantine | Cryocooling Duct disabled 12085 | -2/Quarantine | Ambient heat levels rising (+20) 12118 | -2/Quarantine | Garrison activated, responded to threat 12139 | -2/Quarantine | Destroyed 8 combat bots 12171 | -2/Quarantine | Found Sigix Corpse 12210 | -2/Quarantine | Spotted Fortress 12237 | -2/Quarantine | Identified exit to Section 7 12237 | -2/Quarantine | Discovered exit to Section 7 (range 6) 12239 | -2/Quarantine | Entered Section 7 12240 | -2/Section 7 | Reached level 31 12240 | -2/Section 7 | Maximum security lockdown engaged 12240 | -2/Section 7 | Upgraded with Propulsion slot (x1) 12299 | -2/Section 7 | Found Unknown Device 12299 | -2/Section 7 | Identified Quantum Capacitor 12394 | -2/Section 7 | Crushed by falling debris 12394 | -2/Section 7 | Smashed by cave-in Last Messages --------------- 12294_ A-15 Conveyor destroyed. 12296_ Acquired 85 matter. 12299_ Acquired Unknown Device. 12299_ Identified Quantum Capacitor. 12301_ Dropped Quantum Capacitor. 12318_ Dropped Chainsword. 12318_ Acquired Prototype Piercing Weapon. 12318_ Identified Plasma Lance. 12318_ Impulse Thruster permanently disabled. 12318_ Malfunction: Power surge. 12320_ Dropped Faulty Plasma Lance. 12321_ Acquired Plasma Lance. 12323_ Dropped Broken Impulse Thruster. 12340_ ALERT: Assault forces dispatched. 12358_ Acquired Field Propulsion Drive. 12394_ The unstable cave ceiling collapses. 12394_ Crushed by falling debris. 12394_ Relay Coupler [Sentry] destroyed. 12394_ System corrupted by crushing effect (+1). 12394_ Adv. Hacking Suite destroyed. Map ----- +----------------------------------------------------+ | | | | | | | | | | | | | | | | | ?????????????????????????????????????????????????? | | ?????????????????????????????????????????????????? | | ?????????????????????????????????????????????????? | | ?########??????########??????????????????????????? | | ?# #??????# #??????????????????????????? | | ##""" #??????# #??????????????????????????? | | #"R #??????# #??????????????????????????? | | #""" #??????# #??????????????????????????? | | #""" #??????# #??????????????????????????? | | # #??????# #?###??????????????????????? | | #+##+#############+#####T#??????????????????????? | | + "??????????????????????? | | # CC "??????????????????????? | | ##################C#####;#??????????????????????? | | #?????????????#] #?# #??????????????????????? | | #?????????????# ! #?# #??????????????????????? | | !#?????????????# #?# #??????????????????????? | | ################ #?#@#??????????????????????? | | + #?# #??????????????????????? | | ################ #?###??????????????????????? | | ????????# ##+#####??????????????????????????? | | ????????# =! ## #??????????????????????????????? | | ????????#//! ## #??????????????????????????????? | | ????????# ! ## #??????????????????????????????? | | ????????# ## #??????????????????????????????? | | ????????# ## #??????????????????????????????? | | ????#######+##+## #??????????????????????????????? | | ?# #??????????????????????????????? | | ????###############??????????????????????????????? | | ?????????????????????????????????????????????????? | | ?????????????????????????????????????????????????? | | ?????????????????????????????????????????????????? | | ?????????????????????????????????????????????????? | | ?????????????????????????????????????????????????? | | ?????????????????????????????????????????????????? | | ?????????????????????????????????????????????????? | | ?????????????????????????????????????????????????? | | ?????????????????????????????????????????????????? | | ?????????????????????????????????????????????????? | | ?????????????????????????????????????????????????? | | ?????????????????????????????????????????????????? | | ?????????????????????????????????????????????????? | +----------------------------------------------------+ Best States ------------- Heat Dissipation 50 Energy Generation 39 Energy Capacity 975 Matter Stores 300 Matter Capacity 300 Sight Range 24 Terrain Scan Density 10 Jamming Range 12 Cloak Strength 3 Corruption Prevention 12 Armor Coverage 150 Resistance: KI 55 Resistance: TH 55 Resistance: EX 55 Resistance: EM 50 Resistance: I 35 Resistance: S 35 Resistance: P 35 Utility Shielding 33 Evasion (%) 63 Core Analysis 10 Force Boost 5 Offensive Hacking 93 Defensive Hacking 73 Relay Coupler Types 180 Relay Coupler Value 4 Item Schematics ----------------- Spread Laser | -7/Factory | Extracted Hacking Suite | -7/Factory | Hacked System Backup Module | -7/Factory | Hacked System Shield | -7/Factory | Hacked Plasma Cannon | -7/Factory | Hacked Imp. Cloaking Device | -6/Factory | Hacked Actuator Array | -6/Factory | Hacked Katana | -6/Factory | Hacked Imp. Remote Datajack | -6/Factory | Scanalyzed Gauss Rifle | -5/Factory | Scanalyzed Hrd. Medium Armor Plating | -5/Factory | Extracted Coolant Injector | -5/Factory | Extracted Point Defense System | -5/Factory | Extracted Wheel | -5/Factory | Extracted Adv. Power Amplifier | -5/Factory | Extracted Hvy. Hammer | -5/Factory | Extracted Adv. Hacking Suite | -4/Factory | Hacked Adv. System Shield | -4/Factory | Hacked Impulse Thruster | -4/Factory | Hacked Adv. Remote Datajack | -4/Factory | Hacked Lgt. Antimatter Reactor | -4/Factory | Hacked Lyr. Heavy Armor Plating | -4/Factory | Extracted Field Propulsion Drive | -4/Factory | Extracted Adv. Cryofiber Web | -4/Factory | Extracted Hardcell Cannon | -4/Factory | Extracted Matter Neutralizer | -4/Factory | Extracted Cmb. Airjet | -4/Factory | Extracted Adv. Cooling System | -4/Factory | Extracted Imp. Force Field | -4/Factory | Extracted Launcher Loader | -4/Factory | Extracted Imp. Heavy Treads | -4/Factory | Extracted Imp. Thermal Shield | -4/Factory | Extracted Biomechanical Wings | -4/Factory | Hacked Triangulator | -4/Factory | Hacked Imp. System Backup Module | -4/Factory | Extracted Hpw. Shock Rifle | -4/Factory | Extracted Remote Shield | -4/Factory | Extracted Imp. Targeting Computer | -4/Factory | Extracted Adv. Component Analysis Suite | -4/Factory | Hacked Exp. Hacking Suite | -4/Factory | Hacked Exp. Cesium-ion Thruster | -4/Factory | Hacked Exp. System Shield | -4/Factory | Hacked Adv. Heavy Treads | -4/Factory | Hacked Biometal Medium Treads | -4/Factory | Hacked Lgt. Quantum Reactor | -4/Factory | Hacked Rnf. Quantum Reactor | -3/Research | Hacked Cmb. Linear Gravjet | -3/Research | Hacked Biometal Heavy Treads | -3/Research | Hacked Adv. Micro-nuke Launcher | -3/Research | Hacked Adv. Reaction Control System | -3/Research | Hacked Enh. Quantum Rifle | -3/Research | Hacked Quantum Reactor | -3/Research | Hacked Imp. Diametric Drive | -3/Research | Hacked EM Disruption Field | -3/Research | Extracted Melee Analysis Suite | -3/Research | Extracted Stasis Canceller | -3/Research | Extracted Linear Accelerator | -3/Research | Hacked Adv. Force Field | -3/Research | Hacked Hyp. Railgun | -3/Research | Hacked Gamma Bomb Array | -3/Research | Hacked Enh. Nova Cannon | -3/Research | Hacked Imp. Stasis Canceller | -3/Research | Hacked Chainsword | -3/Research | Scanalyzed Impulse Thruster Array | -3/Research | Scanalyzed Neutrino Core | -3/Research | Scanalyzed Ragnarok Missile Launcher | -3/Research | Hacked Stasis Projector | -3/Research | Hacked Adv. Core Analyzer | -3/Research | Hacked Robot Schematics ------------------ K-01 Serf | -3/Research | Hacked M-30 Cleanser | -3/Research | Hacked R-06 Scavenger | -3/Research | Hacked T-07 Excavator | -3/Research | Hacked Fabricated ------------ Q-thruster | x2 | -6/Factory | Preloaded Hacking Suite | x1 | -6/Factory System Backup Module | x2 | -6/Factory System Shield | x1 | -6/Factory Imp. Cloaking Device | x1 | -5/Factory Actuator Array | x1 | -5/Factory Adv. Power Amplifier | x1 | -5/Factory Adv. Hacking Suite | x1 | -4/Factory Adv. Hacking Suite | x1 | -4/Factory Adv. System Shield | x1 | -4/Factory Adv. System Shield | x1 | -4/Factory Adv. Remote Datajack | x1 | -4/Factory Lgt. Antimatter Reactor | x2 | -4/Factory Biomechanical Wings | x1 | -4/Factory Matter Neutralizer | x2 | -4/Factory Cld. Q-thruster | x1 | -3/Research | Preloaded A-15 Conveyor | x1 | -3/Research | Preloaded Ragnarok Missile Launcher | x1 | -3/Armory Impulse Thruster | x2 | -3/Armory Imp. System Backup Module | x2 | -3/Armory Adv. Micro-nuke Launcher | x1 | -2/Research Adv. Remote Datajack | x1 | -2/Research Alien Tech Used ----------------- None Achievements -------------- Deadly Force Explorer Maximum Efficiency No Signal Nope Origins Production Line Prolific Hacker Pwned Challenges ------------ None RPGLIKE | -11 -10 -10 -10 -9 -8 -7 -7 -6 -6 -6 -6 -6 -5 -5 -5 -4 -4 -4 -4 -4 -4 -3 -3 -3 -2 -2 -2 --------- Run | Scr Mat Min Exi Min Mat Fac Gar Fac Gar Fac Low Low Fac Upp Upp Fac Gar Fac Upp Upp War Pro Res Arm Res Qua Sec Levels Raised 30 | . . . 1 . 5 3 1 2 1 . 1 . 2 . . 3 2 2 . 1 . . 2 . 2 1 1 XP Earned 51728 | 6000 840 500 350 843 6797 4649 1500 2568 2544 105 500 500 2434 500 500 4147 3195 2674 412 484 170 1000 2232 863 2000 2481 940 XP Spent 50770 | 5275 . . 1980 . 6100 4500 2650 2650 2300 . 1495 . 1250 1800 . 4500 2550 2300 . 2585 . . 3050 . 3015 1470 1300 Upgrades 95 | 12 . . 4 . 5 3 4 7 3 . 13 . 2 2 . 4 3 1 . 11 . . 6 . 9 4 2 Power Slot 1 | . . . . . . . . . . . . . . . . 1 . . . . . . . . . . . Propulsion Slot 3 | 1 . . . . 1 . . . . . . . . . . . . . . . . . . . . . 1 Utility Slot 7 | 1 . . 1 . . 1 . . 1 . . . . 1 . 1 . 1 . . . . . . . . . Weapon Slot 2 | . . . . . . . . . . . . . 1 . . . . . . . . . . . . 1 . Core Integrity 36 | 1 . . 2 . . . . . . . 13 . . . . . . . . 11 . . . . 9 . . Heat Dissipation 2 | . . . . . . . . . . . . . . . . . . . . . . . 1 . . 1 . Mass Support 1 | . . . . . . . . . . . . . . 1 . . . . . . . . . . . . . Inventory Capacity 6 | 2 . . . . . . . . 1 . . . . . . . 2 . . . . . 1 . . . . Sight Range 4 | . . . . . . . . 4 . . . . . . . . . . . . . . . . . . . Ranged Accuracy 1 | . . . . . . . . . . . . . . . . . . . . . . . . . . 1 . Melee Accuracy 2 | . . . . . . . . . . . . . . . . 1 1 . . . . . . . . . . Hack Attack % 9 | 4 . . . . 2 1 1 . . . . . . . . 1 . . . . . . . . . . . Hack Defense % 7 | 3 . . 1 . 2 1 . . . . . . . . . . . . . . . . . . . . . KI Resistance % 4 | . . . . . . . 3 . . . . . . . . . . . . . . . 1 . . . . TH Resistance % 4 | . . . . . . . . 3 . . . . 1 . . . . . . . . . . . . . . EX Resistance % 4 | . . . . . . . . . 1 . . . . . . . . . . . . . 3 . . . . TH Damage % 1 | . . . . . . . . . . . . . . . . . . . . . . . . . . 1 . EX Damage % 1 | . . . . . . . . . . . . . . . . . . . . . . . . . . . 1 Protomatter Created 1284 | . 44 . . . 205 108 30 . 83 . . . . . . 77 238 185 96 60 . . 60 . . 98 . Integrity Restored 3126 | . 117 . . . 279 133 72 . 183 . . . 225 . . 175 847 483 118 380 . . 96 . . 18 . Core 2957 | . 100 . . . 279 133 72 . 183 . . . 225 . . 175 825 353 118 380 . . 96 . . 18 . Parts 169 | . 17 . . . . . . . . . . . . . . . 22 130 . . . . . . . . . Protomatter Decayed 1472 | . 14 . . . 20 26 4 . 22 . . . 76 . . 145 489 390 56 60 . . 109 60 . 1 . Game ------ Seed GravitonKineticGun Manual? 0 Play Time 04:24:27 Cumulative 71.0 hours Start 2020.09.25 @ 20:38:14 End 2020.09.26 @ 01:21:55 Sessions 1 Manual Loads 0 Difficulty Explorer Special Mode Winter2019/RPGLIKE Game No. 83 Rogue 59 Adventurer 22 Explorer 2 Win Type - Total 1 Types 1/0/0/0/0/0/0/0/0 Lore% 42 Gallery% 45 Achievement% 39 Wizard Run 0 Options --------- ASCII 0 Keyboard 0 Movement Numpad Keybinds 0 Fullscreen 1 Font 14/SmallcapsGlow Map View 84x54 Tactical HUD 1 Map Filters NONE Filters NONE Steam 1 RUN: 716f8827-bc92-4c5a-8282-969295220697